Cogmind - Beta 16 --- EXPLORER MODE // 2025.12.20 @ 18:02:23 // Winter2019/RPGLIKE Player: PhenomPhear Result: Destroyed by AG-15430 with Assembled Focal Cannon Performance ------------- Evolutions (1) 500 Regions Visited (5) 1000 Robots Destroyed (28) 140 Value Destroyed (729) 729 Prototype IDs (12) 240 Alien Tech Used (0) 0 Bonus (1300) 1300 TOTAL SCORE: 3909 Bonus ------- Met Imprinter 300 Destroyed Z-Imprinter 1000 Cogmind --------- Core Integrity 0/1000 Matter 262/300 Energy 250/250 System Corruption 0% Temperature Cool (6) Movement Walking (110) Location -7/Deep Caves Parts ------- > --- POWER (2) -------- Ion Engine Zionite Light DM Reactor > --- PROPULSION (2) --- Zionite Composite Leg I Zionite Composite Leg I > --- UTILITY (4) ------ Experimental Heat Sink Improved Terrain Scanner > --- WEAPON (3) ------- Guided Missile Launcher CR-A16's Pointy Stick > --- INVENTORY (5) ---- Phasing AFG Bore Cannon Plasma Cutter Self-destruct Interrupter (50) Self-destruct Interrupter (50) Peak State ------------ > --- POWER ------------ Ion Engine Zionite Light DM Reactor > --- PROPULSION ------- Zionite Glidesys I Zionite Glidesys I > --- UTILITY ---------- Experimental Heat Sink Improved Terrain Scanner Zionite Light Carapace Phasing AFG > --- WEAPON ----------- Bore Cannon Guided Missile Launcher > --- INVENTORY -------- Plasma Cutter CR-A16's Pointy Stick Self-destruct Interrupter Self-destruct Interrupter [Rating: 66] Favorites ----------- Power Ion Engine Engine Ion Engine Reactor Zionite Light DM Reactor Propulsion Light Treads Treads Light Treads Leg Zionite Composite Leg I Hover Unit Zionite Glidesys I Utility Improved Terrain Scanner Device Improved Terrain Scanner Storage Zionite Biocell Processor Targeting Computer Protection Hardened Light Armor Plating Weapon Assault Rifle Energy Gun EM Pulse Gun Ballistic Gun Assault Rifle Ballistic Cannon Bore Cannon Launcher Guided Missile Launcher Special Weapon Plasma Cutter Piercing Weapon CR-A16's Pointy Stick Build | -11 -10 -9 -9 -7 -7 ------- Run | Yrd Mat Mat Min Zio Dee Slots Evolved 7 | 7 . . . . . Power 1 | 1 . . . . . Propulsion 1 | 1 . . . . . Utility 3 | 3 . . . . . Weapon 2 | 2 . . . . . Parts Attached 34 | 13 4 . . 5 12 Power 4 | 2 . . . . 2 Engine 2 | 2 . . . . . Core . | . . . . . . Reactor 2 | . . . . . 2 Propulsion 6 | 2 . . . . 4 Treads 2 | 2 . . . . . Leg 2 | . . . . . 2 Wheel . | . . . . . . Hover 2 | . . . . . 2 Flight . | . . . . . . Utility 13 | 6 2 . . 1 4 Device 5 | 2 1 . . 1 1 Storage 1 | . . . . . 1 Processor 2 | 2 . . . . . Hackware . | . . . . . . Protection 5 | 2 1 . . . 2 Artifact . | . . . . . . Weapon 11 | 3 2 . . 4 2 Energy Gun 2 | 1 . . . . 1 Energy Cannon . | . . . . . . Ballistic Gun 3 | 2 1 . . . . Ballistic Cannon 1 | . . . . . 1 Launcher 3 | . 1 . . 2 . Special Weapon 1 | . . . . 1 . Impact Weapon . | . . . . . . Slashing Weapon . | . . . . . . Piercing Weapon 1 | . . . . 1 . Special Melee Weapon . | . . . . . . Unidentified Prototypes 10 | . . . . 2 8 Parts Lost 2 | . . . . . 2 Power . | . . . . . . Propulsion . | . . . . . . Utility 2 | . . . . . 2 Weapon . | . . . . . . Highest Loss Streak 2 | . . . . . 2 To Critical Strikes . | . . . . . . Average Backups 1 | . . 2 2 1 2 Power . | . . . . . . Propulsion . | . . . . . . Utility . | . . . . . . Weapon . | . . 1 1 1 1 Tool/Special . | . . . . . . Unused Backups 2 | . . 1 . 1 . Power . | . . . . . . Propulsion . | . . . . . . Utility 1 | . . 1 . . . Weapon 1 | . . . . 1 . Tool/Special . | . . . . . . Average Slot Usage (%) 96 | . 100 100 100 97 89 Engine 17 | . 18 18 18 18 14 Treads 16 | . 18 18 18 18 12 Device 25 | . 21 27 27 27 24 Processor 1 | . 5 . . . . Protection 9 | . 9 9 9 9 11 Ballistic Gun 13 | . 24 27 27 12 . Ballistic Cannon 1 | . . . . . 7 Launcher 6 | . . . . 8 8 Piercing Weapon 1 | . . . . 3 1 Peak Build Rating 66 | 13 16 16 16 40 66 Average Rating 29 | 8 14 16 16 31 47 On Entrance 16 | . 13 16 16 16 40 Avg Prop Armor Cover (%) 4 | . . . . . 4 Naked Turns . | . . . . . . Heaviest Build 61 | 21 24 24 24 50 61 Greatest Support 48 | 40 40 40 40 40 48 Greatest Overweight (x) 5 | 5 . . . 1 4 Average Overweight (x) . | . . . . . . Largest Inventory Capacity 5 | 2 2 2 2 4 5 Average Capacity 3 | 2 2 2 2 3 4 Most Carried 5 | . 2 2 2 4 5 Average Carried 3 | . . 2 2 3 4 Final Capacity 5 | 2 2 2 2 4 5 Final Carried 5 | . 2 2 2 4 5 Class Distribution -------------------- 75% | Hacker-Skirmisher 18% | Hacker-Assassin 6% | Scavenger-Skirmisher Dominant Class ---------------- Hacker-Skirmisher | -10/Materials Hacker-Skirmisher | -9/Materials Hacker-Skirmisher | -9/Mines Hacker-Skirmisher | -7/Zion Hacker-Skirmisher | -7/Deep Caves Resources | -11 -10 -9 -9 -7 -7 ----------- Run | Yrd Mat Mat Min Zio Dee Matter Collected 1277 | 356 288 64 . 40 529 Remotely 509 | 157 288 64 . . . Salvage Created 932 | 136 474 . . . 322 Parts 64 | 9 29 . . . 26 Haulers Intercepted 2 | . 2 . . . . Recyclers Shooed . | . . . . . . Parts Field Recycled . | . . . . . . Retrieved Matter . | . . . . . . Parts Self-Destructed . | . . . . . . Prevented . | . . . . . . Parts Restored . | . . . . . . Kills | -11 -10 -9 -9 -7 -7 ------- Run | Yrd Mat Mat Min Zio Dee Combat Hostiles Destroyed 22 | . 10 . . . 12 Melee 1 | . 1 . . . . Guns 7 | . 7 . . . . Cannons 9 | . . . . . 9 AOE 5 | . 2 . . . 3 Classes Destroyed 9 | 3 4 . . . 2 Worker 4 | 1 3 . . . . Tunneler 1 | 1 . . . . . Hauler 2 | . 2 . . . . Recycler 1 | 1 . . . . . Watcher 1 | . 1 . . . . Swarmer 3 | . 3 . . . . Grunt 7 | . 7 . . . . Z-Light 8 | . . . . . 8 Assembled 3 | . . . . . 3 Best Kill Streak 5 | 3 5 . . . 4 Combat Bots Only 4 | . 4 . . . 4 Max Kills in Single Turn 2 | 1 2 . . . 2 Gunslinging . | . . . . . . Exploded 1 | . 1 . . . 1 Melee 1 | . 1 . . . . Uniques/NPCs Destroyed 1 | . . . . . 1 Z-Imprinter (-7/Deep Caves) Combat | -11 -10 -9 -9 -7 -7 -------- Run | Yrd Mat Mat Min Zio Dee Hostile Shots Fired 146 | . 34 . . . 112 Missed 38 | . 17 . . . 21 Hits 108 | . 17 . . . 91 Melee 2 | . . . . . 2 Projectile 106 | . 17 . . . 89 Damage Taken 2039 | 15 126 . . . 1898 Core 1371 | 12 85 . . . 1274 Absorbed by Shields . | . . . . . . Redirected to Core 1235 | 12 85 . . . 1138 Redirected to Shielding 115 | . . . . . 115 Ignored by Resistances 1169 | 9 79 . . . 1081 Core Remaining (%) 95 | 98 92 . . . . Volleys Fired 71 | 4 27 1 . . 39 Largest 3 | 3 3 3 . . 1 Hottest 80 | 80 80 60 . . 48 Shots Fired 124 | 12 70 3 . . 39 Gun 83 | 12 68 3 . . . Cannon 31 | . . . . . 31 Launcher 10 | . 2 . . . 8 Special . | . . . . . . Kinetic 103 | 8 61 3 . . 31 Thermal . | . . . . . . Explosive 10 | . 2 . . . 8 Electromagnetic 11 | 4 7 . . . . Robot Hit Streak 18 | 11 18 13 . . 14 Robot Miss Streak 2 | . 2 . . . 2 Penetration Max 1 | . . . . . 1 Secondary Targets 1 | . 1 . . . . Max Gunslinging Chain 1 | . 1 . . . . Shots Hit Robots 102 | 11 53 3 . . 35 Core Hits 62 | 4 26 . . . 32 Critical Kills 7 | . . . . . 7 Critical Parts Destroyed 5 | . . . . . 5 Critical Strikes 17 | . . . . . 17 Destroy 14 | . . . . . 14 Impale 3 | . . . . . 3 Melee Attacks 8 | . . . . . 8 Impact . | . . . . . . Slashing . | . . . . . . Piercing 8 | . . . . . 8 Sneak Attacks . | . . . . . . Combat Hostiles . | . . . . . . Follow-up Attacks . | . . . . . . Damage Inflicted 2605 | 166 969 37 . . 1433 Guns 847 | 137 673 37 . . . Cannons 508 | . . . . . 508 Explosions 948 | 29 284 . . . 635 Melee 290 | . . . . . 290 Ramming 12 | . 12 . . . . Kinetic 1248 | 98 605 37 . . 508 Thermal 73 | 29 44 . . . . Explosive 875 | . 240 . . . 635 Electromagnetic 107 | 39 68 . . . . Impact . | . . . . . . Slashing . | . . . . . . Piercing 290 | . . . . . 290 Highest Corruption . | . . . . . . Average Corruption . | . . . . . . Corruption Purged . | . . . . . . Corruption Blocked . | . . . . . . Overload Shots . | . . . . . . Overflow Damage 66 | . 39 . . . 27 Projectiles . | . . . . . . Explosions 66 | . 39 . . . 27 Melee . | . . . . . . Knockbacks 5 | . . . . . 5 Impact . | . . . . . . Kinetic 5 | . . . . . 5 Secondary . | . . . . . . Self-Inflicted Damage 15 | 15 . . . . . Shots 1 | 1 . . . . . Rammed 4 | . 4 . . . . Targets Rammed 5 | . 5 . . . . Kicked . | . . . . . . Crushed 1 | . 1 . . . . Highest Temperature 535 | 126 252 . . . 535 Average Temperature 145 | 58 82 . . . 212 Received Heat Transfer 825 | . 93 . . . 732 Effects 13 | . 2 . . . 11 Shutdowns 2 | . . . . . 2 Energy Bleed 2 | . . . . . 2 Interference 6 | . 2 . . . 4 Matter Decay 1 | . . . . . 1 Short Circuit 2 | . . . . . 2 Siege Activations . | . . . . . . Martial Activations . | . . . . . . Shielding Activations . | . . . . . . Robots Disrupted . | . . . . . . Combat Hostiles . | . . . . . . Robots Corrupted . | . . . . . . Combat Hostiles . | . . . . . . Parts Fried . | . . . . . . Impact Corruptions . | . . . . . . Robots Melted . | . . . . . . Combat Hostiles . | . . . . . . Parts Melted . | . . . . . . Heat Transferred 150 | 50 100 . . . . Parts Sabotaged . | . . . . . . Parts Stolen . | . . . . . . Parts Stripped . | . . . . . . Power Chain Reactions 2 | 1 1 . . . . Alert | -11 -10 -9 -9 -7 -7 ------- Run | Yrd Mat Mat Min Zio Dee Maximum Alert Level . | . . . . . . Low Security (%) 100 | 100 100 100 100 . . Level 1 . | . . . . . . Level 2 . | . . . . . . Level 3 . | . . . . . . Level 4 . | . . . . . . Level 5 . | . . . . . . High Security . | . . . . . . Max Security . | . . . . . . Peak Influence 91 | 10 91 . . . . Initial . | . . . . . . Average 9 | 1 13 . . . . Influence Increases 299 | 15 284 . . . . Destroy 0b10 Robot/C 200 | . 200 . . . . Destroy 0b10 Robot/NC 45 | 15 30 . . . . Destroy Leader 36 | . 36 . . . . Disable Machine 4 | . 4 . . . . Destroy Structure 14 | . 14 . . . . Influence Decreases 299 | 15 284 . . . . Time Decay 299 | 15 284 . . . . Squads Dispatched 2 | . 1 1 . . . Investigation 1 | . 1 . . . . Extermination . | . . . . . . Reinforcement 1 | . . 1 . . . Assault . | . . . . . . Garrison . | . . . . . . Intercept . | . . . . . . Searches Triggered . | . . . . . . Construction Impeded . | . . . . . . Haulers Reinforced . | . . . . . . Active Scanning Responses . | . . . . . . Cargo Convoy Interrupts . | . . . . . . Stealth | -11 -10 -9 -9 -7 -7 --------- Run | Yrd Mat Mat Min Zio Dee Distress Signals 2 | . 2 . . . . Communications Jammed . | . . . . . . Distress Signals . | . . . . . . Times Spotted 35 | . 18 3 . . 14 Peak Tracking Total 5 | . 3 2 . . 5 Tactical Retreats 1 | . . . . . 1 Traps | -11 -10 -9 -9 -7 -7 ------- Run | Yrd Mat Mat Min Zio Dee Traps Triggered 1 | . 1 . . . . Indirectly . | . . . . . . Trap Hack Attempts . | . . . . . . Triggered . | . . . . . . Disarmed . | . . . . . . Reprogrammed . | . . . . . . Reused . | . . . . . . Traps Extracted . | . . . . . . Installed . | . . . . . . Triggered . | . . . . . . Machines | -11 -10 -9 -9 -7 -7 ---------- Run | Yrd Mat Mat Min Zio Dee Machines Disabled 5 | . 1 . . 3 1 Max in Single Turn 1 | . 1 . . 1 1 Machines Repaired . | . . . . . . Machines Dismantled 3 | . . . . 3 . Machines Sabotaged . | . . . . . . Overloaded Fab Kills . | . . . . . . Hacking | -11 -10 -9 -9 -7 -7 --------- Run | Yrd Mat Mat Min Zio Dee Machines Accessed 1 | . 1 . . . . Terminals 1 | . 1 . . . . Fabricators . | . . . . . . Repair Stations . | . . . . . . Recycling Units . | . . . . . . Scanalyzers . | . . . . . . Garrison Access . | . . . . . . Total Hacks 5 | . 5 . . . . Successful 1 | . 1 . . . . Failed 4 | . 4 . . . . Catastrophic . | . . . . . . Database Lockouts . | . . . . . . Manual 5 | . 5 . . . . Terminals 5 | . 5 . . . . Fabricators . | . . . . . . Repair Stations . | . . . . . . Recycling Units . | . . . . . . Scanalyzers . | . . . . . . Garrison Access . | . . . . . . Terminal Hacks 1 | . 1 . . . . Prototype ID Bank 1 | . 1 . . . . Fabricator Hacks . | . . . . . . Repair Station Hacks . | . . . . . . Recycling Unit Hacks . | . . . . . . Scanalyzer . | . . . . . . Garrison Access Hacks . | . . . . . . Unauthorized Hacks . | . . . . . . Terminals . | . . . . . . Fabricators . | . . . . . . Repair Stations . | . . . . . . Recycling Units . | . . . . . . Scanalyzers . | . . . . . . Garrison Access . | . . . . . . Data Cores Recovered . | . . . . . . Used . | . . . . . . Hacking Detections 1 | . 1 . . . . Full Trace Events 1 | . 1 . . . . Feedback Events . | . . . . . . Feedback Blocked . | . . . . . . Robot Schematics Acquired . | . . . . . . Robots Built . | . . . . . . Authchips . | . . . . . . Time . | . . . . . . Total Robot Build Rating . | . . . . . . Part Schematics Acquired . | . . . . . . Parts Built . | . . . . . . Authchips . | . . . . . . Time . | . . . . . . Total Part Build Rating . | . . . . . . Part Studies Acquired . | . . . . . . Parts Repaired . | . . . . . . Time . | . . . . . . Parts Recycled . | . . . . . . Recycled Matter . | . . . . . . Retrieved Matter . | . . . . . . Retrieved Components . | . . . . . . Parts Scanalyzed . | . . . . . . Part Schematics Acquired . | . . . . . . Parts Damaged . | . . . . . . Bothacking | -11 -10 -9 -9 -7 -7 ------------ Run | Yrd Mat Mat Min Zio Dee Used RIF Installer . | . . . . . . Robots Hacked . | . . . . . . Non-combat . | . . . . . . Combat . | . . . . . . Robot Hacks Applied . | . . . . . . Relay Couplers Released . | . . . . . . Fabnet Peak Effective % . | . . . . . . Robots Rewired . | . . . . . . Allies Hacked . | . . . . . . Hacks Repelled . | . . . . . . Allies | -11 -10 -9 -9 -7 -7 -------- Run | Yrd Mat Mat Min Zio Dee Total Allies . | . . . . . . Largest Group . | . . . . . . Highest-Rated Group . | . . . . . . Highest-Rated Ally . | . . . . . . Total Orders . | . . . . . . Ally Attacks . | . . . . . . Total Damage . | . . . . . . Kills . | . . . . . . Allies Corrupted . | . . . . . . Allies Melted . | . . . . . . Intel | -11 -10 -9 -9 -7 -7 ------- Run | Yrd Mat Mat Min Zio Dee Active Infowar (turns) 4706 | 9 1072 304 59 2313 949 Terrain 4706 | 9 1072 304 59 2313 949 Robot Analysis Total . | . . . . . . Derelict Logs Recovered 1 | . . . . 1 . Drone Launches . | . . . . . . Drone Recoveries . | . . . . . . Exploration | -11 -10 -9 -9 -7 -7 ------------- Run | Yrd Mat Mat Min Zio Dee Turns Passed 4994 | 125 1159 304 59 2313 1034 Spaces Moved 2299 | 55 608 188 32 942 474 Core 18 | 18 . . . . . Treads 2041 | 37 608 188 32 942 234 Legs 167 | . . . . . 167 Wheels . | . . . . . . Hover 73 | . . . . . 73 Flight . | . . . . . . Fastest Speed 50 | 50 160 160 160 160 56 Average Speed 192 | 164 160 160 160 231 174 Slowest Speed 400 | 300 160 160 160 240 400 Overloaded Moves . | . . . . . . Propulsion Burnouts . | . . . . . . Robots Hopped . | . . . . . . Potential Cave-ins . | . . . . . . Cave-ins Triggered . | . . . . . . Exploration Rate (%) 43 | 4 80 15 19 85 59 Regions Visited 5 Branch Regions 3 Pre-discovered Areas 2 | . . . . 2 . Known Exits Taken 4 | 1 1 1 . 1 . Unknown Exits Taken 1 | . . . 1 . . Scrap Searched 3 | . . . . 3 . Spaces Dug . | . . . . . . Terrain Destroyed 27 | 5 12 . . . 10 Melee . | . . . . . . Projectile 10 | . . . . . 10 AOE 17 | 5 12 . . . . Terrain Rammed . | . . . . . . Walls Destroyed . | . . . . . . Machines Disabled . | . . . . . . Actions | -11 -10 -9 -9 -7 -7 --------- Run | Yrd Mat Mat Min Zio Dee Total 2685 | 75 734 190 40 1025 621 Wait 177 | . 79 . 9 37 52 Move 2294 | 54 607 187 31 941 474 Hop . | . . . . . . Pick Up 9 | . 2 1 . 5 1 Fast Attach 34 | 14 2 . . 4 14 Attach 1 | . . . . . 1 Detach 3 | 1 1 . . . 1 Swap 9 | . 3 . . 3 3 Drop 27 | 2 2 1 . 8 14 Fire 71 | 4 27 1 . . 39 Melee 8 | . . . . . 8 Ram . | . . . . . . Kick . | . . . . . . Crush 5 | . 5 . . . . Escape Stasis . | . . . . . . Rewire . | . . . . . . Trap . | . . . . . . Miscellaneous 47 | . 6 . . 27 14 Route ------- -11/Scrapyard -10/Materials (discovered 4 exits: *Mat x3 / *Sub) -9/Materials -9/Mines -7/Zion (discovered 2 exits: *Dee / Pro) -7/Deep Caves (discovered 1 exit: Pro) History --------- Turn | Location | Event 1 | -11/Scrapyard | Upgraded with Power slot (x1) 1 | -11/Scrapyard | Upgraded with Propulsion slot (x1) 1 | -11/Scrapyard | Upgraded with Utility slot (x3) 1 | -11/Scrapyard | Upgraded with Weapon slot (x2) 43 | -11/Scrapyard | Identified exit to Materials 43 | -11/Scrapyard | Discovered exit to Materials (range 15) 126 | -11/Scrapyard | Entered Materials 127 | -10/Materials | Met a group of wandering Federalists 216 | -10/Materials | Identified exit to Materials 216 | -10/Materials | Discovered exit to Materials (range 5) 221 | -10/Materials | Identified exit to Subcaves 221 | -10/Materials | Discovered exit to Subcaves (range 7) 313 | -10/Materials | Build established: Hacker-Skirmisher 510 | -10/Materials | Discovered exit to Materials (range 9) 832 | -10/Materials | Discovered exit to Materials (range 11) 1285 | -10/Materials | Entered another Materials area 1287 | -9/Materials | Reached level 2 1287 | -9/Materials | Reached level 3 1312 | -9/Materials | Identified exit to Mines 1312 | -9/Materials | Discovered exit to Mines (range 16) 1589 | -9/Materials | Entered Mines 1591 | -9/Mines | Reached level 4 1636 | -9/Mines | A Derelict revealed a hidden shortcut to a safe place 1640 | -9/Mines | Met a Derelict bent on vengeance 1648 | -9/Mines | Entered Zion 1650 | -7/Zion | Reached level 5 1808 | -7/Zion | Identified exit to Proximity Caves 1808 | -7/Zion | Discovered exit to Proximity Caves (range 11) 1819 | -7/Zion | Found Prototype Device 1819 | -7/Zion | Identified Phasing AFG 2250 | -7/Zion | Learned location of Armory (-4) 2411 | -7/Zion | Learned 8 Factory zone layouts 2501 | -7/Zion | Identified exit to Deep Caves 2501 | -7/Zion | Discovered exit to Deep Caves (range 14) 2750 | -7/Zion | Met Imprinter 2750 | -7/Zion | Reached level 6 3063 | -7/Zion | Found CR-A16's Pointy Stick 3283 | -7/Zion | Found Prototype Launcher 3283 | -7/Zion | Identified Gui. Missile Launcher 3361 | -7/Zion | Build established: Hacker-Assassin 3594 | -7/Zion | Given the Hacking Drone Bay 3906 | -7/Zion | Saw the warning signs outside the Deep Caves entrance 3961 | -7/Zion | Entered Deep Caves 3963 | -7/Deep Caves | Reached level 7 3963 | -7/Deep Caves | Reached level 8 4340 | -7/Deep Caves | Build established: Hacker-Skirmisher 4420 | -7/Deep Caves | Attacked by Z-Imprinter 4441 | -7/Deep Caves | Core integrity fell below 50% 4453 | -7/Deep Caves | Destroyed Z-Imprinter 4454 | -7/Deep Caves | Core integrity fell below 20% 4594 | -7/Deep Caves | Z-Facility disabled 4685 | -7/Deep Caves | Found Prototype Protection 4685 | -7/Deep Caves | Identified Zio. Weapon Casing 4920 | -7/Deep Caves | Identified exit to Proximity Caves 4920 | -7/Deep Caves | Discovered exit to Proximity Caves (range 7) 4941 | -7/Deep Caves | Spotted AG-15430 4950 | -7/Deep Caves | Build established: Scavenger-Skirmisher 4995 | -7/Deep Caves | Destroyed by AG-15430 with Assembled Focal Cannon Last Messages --------------- 04743_ Acquired Zio. Weapon Casing. 04745_ Acquired 2 matter. 04745_ Acquired 38 matter. 04748_ Acquired 10 matter. 04759_ Extracted 1 energy. 04762_ Dropped Zio. Glidesys I. 04762_ Acquired Prototype Leg. 04762_ Identified Zio. Composite Leg I. 04765_ Dropped Zio. Glidesys I. 04765_ Acquired Zio. Composite Leg I. 04775_ Acquired Gui. Missile Launcher. 04782_ Acquired 2 matter. 04920_ EXIT=FOUND: PROXIMITY CAVES 04946_ AG-15430: "DSI9AT1D G8OHIBQ29FWG 26R186 QD12WHW8W33 TDK1 81FTS" 04968_ AG-15430 suffers critical hit (Impale). 04976_ Zio. Light Carapace destroyed. 04986_ AG-15430 suffers critical hit (Impale). 04991_ Zio. Weapon Casing destroyed. Map ----- +----------------------------------------------------+ | ??????????????????????????????????? ####???? | | ??????????????????????????????#???# ## ??? ? | | ???????????????????????????? ?????? ?#?? | | ??????????????????????????##??#??#?# ? ??# | | ???????????????????????? ????#?#??## ?##? | | ?????????????????????? ?? ?###?## #?#?#??? | | ?????????????????????? #??# ## #?##? ?? | | ???????????????????? ##?# ##?? ? | | ?????????????????= #?# ##>? #?# | | ????????????????* #?## ######### | | ??????????????? *= = * #?## ######### | | ????????????? * ##### ###### | | ?????????? [ [h = ##### ### | | ?????????" ##?## ## | | ?????????" s h #### ### # | | ?????????" [ ### ##?# | | ????????"" [ * [ * ## ###?##### | | ????????# * # ###?##?### ### | | ????????" # ####??#?#####?# | | ????????" ! l [ ## ########?####?# | | ????????" [ #?##?#?#####?## | | ????????""" ! [ ########??#?##? | | ????????" s #######? ?#??? | | ????????"" ## #?##? ? ? ? | | ????????" l G ## ? | | ????????"" @ ### | | ????????" ; ; #?## #### | | ???????"" #### ## ## ############ ### | | ???????"""" ###### ## #######?#?###########?#? | | ????????"" ? ? ?#### #############?#######??? | | ????????"###?######?#####?######?#######?##????? | | | | | | | | | | | | | | | | | | | | | | | | | | | | | | | | | | | | | | | +----------------------------------------------------+ Best States ------------- Heat Dissipation 51 Energy Generation 32 Energy Capacity 400 Matter Stores 300 Matter Capacity 300 Sight Range 18 Robot Scan Range 16 Terrain Scan Range 16 Terrain Scan Density 310 Armor Coverage 400 Resistance: KI 35 Resistance: TH 35 Resistance: EX 35 Resistance: EM 35 Resistance: I 35 Resistance: S 35 Resistance: P 35 Power Shielding 33 Weapon Shielding 100 Evasion (%) 55 Targeting Accuracy 10 Recoil Reduction 2 Offensive Hacking 20 Item Schematics ----------------- None Robot Schematics ------------------ None Fabricated ------------ Nothing Repaired ---------- Nothing Studied --------- None Alien Tech Used ----------------- None Achievements -------------- Well Done Challenges ------------ None RPGLIKE | -11 -10 -9 -9 -7 -7 --------- Run | Yrd Mat Mat Min Zio Dee Levels Raised 7 | . . 2 1 2 2 XP Earned 17741 | 6000 1150 3292 649 2955 3695 XP Spent 13300 | 6000 . 2820 1000 1750 1730 Upgrades 37 | 15 . 6 5 2 9 Power Slot 1 | 1 . . . . . Propulsion Slot 1 | 1 . . . . . Utility Slot 3 | 3 . . . . . Weapon Slot 2 | 2 . . . . . Core Integrity 8 | . . . . . 8 Inventory Capacity 5 | 2 . . . 2 1 Sight Range 2 | . . . 2 . . Sensor Range 8 | 5 . . 3 . . Terrain Scan Density 3 | 1 . 2 . . . TH Damage % 4 | . . 4 . . . Protomatter Created 211 | . 56 . . . 155 Integrity Restored 414 | . 105 . . . 309 Core 361 | . 52 . . . 309 Parts 53 | . 53 . . . . Protomatter Decayed 12 | . 12 . . . . Game ------ Seed ArmageddonDecoyWheel Manual? 0 Play Time 00:30:08 Cumulative 1168.4 hours Start 2025.12.20 @ 17:25:58 End 2025.12.20 @ 18:02:23 Sessions 1 Manual Loads 0 Difficulty Explorer Special Mode Winter2019/RPGLIKE Game No. 765 Rogue 715 Adventurer 6 Explorer 44 Win Type - Total 23 Types 12/1/6/4/0/0/0/0/0/0 Lore% 68 Gallery% 77 Achievement% 56 Wizard Run 0 Options --------- Layout 2 ASCII 0 Keyboard 0 Movement Mouse Keybinds 0 Fullscreen 2 Font 48/Smallcaps Map View 50x44 Zoom Use 0% Tactical HUD 1 Map Filters NONE Filters NONE Steam 1 RUN: 21365feb-94aa-4634-a452-164845b181b5